[Event "December 12 Early 2023"]
[Site "https://www.chess.com"]
[Date "2023.12.12"]
[Round "9"]
[White "Gan-Erdene, Sugar"]
[Black "Saravana, Krishnan P."]
[Result "1/2-1/2"]
[Board "44"]
[TimeControl "180+1"]
[WhiteFideId "4902980"]
[BlackFideId "5018382"]
[WhiteElo "2753"]
[BlackElo "2606"]
[WhiteTeam "MGL"]
[BlackTeam "IND"]
[WhiteClock "0:00:43"]
[BlackClock "0:00:20"]

1. e4 {[%clk 0:02:59]}  c6 {[%clk 0:02:59]} 2. Nc3 {[%clk 0:02:59]}  d5 {[%clk 0:02:59]} 3. Nf3 {[%clk 0:02:59]}  dxe4 {[%clk 0:02:59]} 4. Nxe4 {[%clk 0:03:00]}  Nf6 {[%clk 0:03:00]} 5. Qe2 {[%clk 0:03:00]}  Nxe4 {[%clk 0:03:00]} 6. Qxe4 {[%clk 0:03:01]}  Be6 {[%clk 0:03:00]} 7. c3 {[%clk 0:02:55]}  Nd7 {[%clk 0:02:59]} 8. d4 {[%clk 0:02:54]}  Nf6 {[%clk 0:02:58]} 9. Qh4 {[%clk 0:02:54]}  Bf5 {[%clk 0:02:54]} 10. Bc4 {[%clk 0:02:53]}  e6 {[%clk 0:02:54]} 11. Ne5 {[%clk 0:02:52]}  Be7 {[%clk 0:02:54]} 12. Qg3 {[%clk 0:02:53]}  O-O {[%clk 0:02:45]} 13. O-O {[%clk 0:02:53]}  c5 {[%clk 0:02:36]} 14. dxc5 {[%clk 0:02:52]}  Bxc5 {[%clk 0:02:35]} 15. Bh6 {[%clk 0:02:41]}  Bg6 {[%clk 0:02:33]} 16. Nxg6 {[%clk 0:02:33]}  hxg6 {[%clk 0:02:33]} 17. Bg5 {[%clk 0:02:14]}  Ne4 {[%clk 0:02:32]} 18. Bxd8 {[%clk 0:02:14]}  Nxg3 {[%clk 0:02:32]} 19. hxg3 {[%clk 0:02:14]}  Rfxd8 {[%clk 0:02:32]} 20. Rad1 {[%clk 0:02:15]}  a5 {[%clk 0:02:29]} 21. Bb5 {[%clk 0:02:13]}  Kf8 {[%clk 0:02:29]} 22. Rfe1 {[%clk 0:02:10]}  Ke7 {[%clk 0:02:28]} 23. Kf1 {[%clk 0:02:10]}  Bb6 {[%clk 0:02:18]} 24. Ke2 {[%clk 0:02:09]}  a4 {[%clk 0:02:16]} 25. Rxd8 {[%clk 0:02:08]}  Bxd8 {[%clk 0:02:15]} 26. Rd1 {[%clk 0:02:07]}  a3 {[%clk 0:02:09]} 27. b4 {[%clk 0:02:02]}  Kf8 {[%clk 0:01:58]} 28. Rd7 {[%clk 0:02:00]}  Bf6 {[%clk 0:01:58]} 29. c4 {[%clk 0:01:55]}  b6 {[%clk 0:01:40]} 30. c5 {[%clk 0:01:49]}  bxc5 {[%clk 0:01:39]} 31. bxc5 {[%clk 0:01:50]}  Rb8 {[%clk 0:01:38]} 32. c6 {[%clk 0:01:40]}  Be5 {[%clk 0:01:22]} 33. Bc4 {[%clk 0:01:32]}  Rc8 {[%clk 0:01:20]} 34. Bb5 {[%clk 0:01:32]}  Rb8 {[%clk 0:01:20]} 35. Bd3 {[%clk 0:01:26]}  Rb2+ {[%clk 0:01:02]} 36. Ke3 {[%clk 0:01:24]}  Ke8 {[%clk 0:01:02]} 37. f4 {[%clk 0:01:21]}  Bb8 {[%clk 0:01:02]} 38. Bc4 {[%clk 0:01:13]}  Rxg2 {[%clk 0:00:45]} 39. c7 {[%clk 0:01:08]}  Rxg3+ {[%clk 0:00:42]} 40. Kf2 {[%clk 0:01:04]}  Ba7+ {[%clk 0:00:39]} 41. Kxg3 {[%clk 0:00:50]}  Kxd7 {[%clk 0:00:39]} 42. Bb5+ {[%clk 0:00:48]}  Kxc7 {[%clk 0:00:39]} 43. Be8 {[%clk 0:00:47]}  f6 {[%clk 0:00:38]} 44. Bxg6 {[%clk 0:00:47]}  Kd6 {[%clk 0:00:38]} 45. Kf3 {[%clk 0:00:48]}  e5 {[%clk 0:00:37]} 46. fxe5+ {[%clk 0:00:44]}  Kxe5 {[%clk 0:00:37]} 47. Kg4 {[%clk 0:00:45]}  Be3 {[%clk 0:00:35]} 48. Bc2 {[%clk 0:00:44]}  g5 {[%clk 0:00:34]} 49. Bg6 {[%clk 0:00:42]}  Bf4 {[%clk 0:00:34]} 50. Bf5 {[%clk 0:00:43]}  Kd4 {[%clk 0:00:34]} 51. Bg6 {[%clk 0:00:42]}  Be5 {[%clk 0:00:34]} 52. Bf5 {[%clk 0:00:42]}  Bd6 {[%clk 0:00:32]} 53. Bg6 {[%clk 0:00:42]}  Ke5 {[%clk 0:00:32]} 54. Bf5 {[%clk 0:00:42]}  Kd4 {[%clk 0:00:26]} 55. Bg6 {[%clk 0:00:42]}  Kc3 {[%clk 0:00:26]} 56. Bf5 {[%clk 0:00:42]}  Kb2 {[%clk 0:00:26]} 57. Be6 {[%clk 0:00:42]}  Be5 {[%clk 0:00:26]} 58. Bf7 {[%clk 0:00:42]}  Kc3 {[%clk 0:00:24]} 59. Bg6 {[%clk 0:00:42]}  Kd4 {[%clk 0:00:24]} 60. Bf5 {[%clk 0:00:42]}  Ke3 {[%clk 0:00:24]} 61. Bg6 {[%clk 0:00:42]}  Bd6 {[%clk 0:00:21]} 62. Bf5 {[%clk 0:00:43]}  Kd4 {[%clk 0:00:20]} 1/2-1/2

[Event "December 12 Early 2023"]
[Site "https://www.chess.com"]
[Date "2023.12.12"]
[Round "9"]
[White "Assylov, Miras"]
[Black "Krzyzanowski, Marcin"]
[Result "0-1"]
[Board "46"]
[TimeControl "180+1"]
[WhiteFideId "13728873"]
[BlackFideId "1132199"]
[WhiteElo "2600"]
[BlackElo "2730"]
[WhiteTeam "KAZ"]
[BlackTeam "POL"]
[WhiteClock "0:00:07"]
[BlackClock "0:00:13"]

1. b3 {[%clk 0:03:00]}  e5 {[%clk 0:02:58]} 2. Bb2 {[%clk 0:03:00]}  Nc6 {[%clk 0:02:58]} 3. e3 {[%clk 0:03:01]}  Nf6 {[%clk 0:02:57]} 4. Nf3 {[%clk 0:03:01]}  e4 {[%clk 0:02:55]} 5. Nd4 {[%clk 0:03:01]}  Nxd4 {[%clk 0:02:55]} 6. Bxd4 {[%clk 0:02:56]}  Be7 {[%clk 0:02:54]} 7. c4 {[%clk 0:02:55]}  O-O {[%clk 0:02:52]} 8. Be2 {[%clk 0:02:55]}  d5 {[%clk 0:02:49]} 9. cxd5 {[%clk 0:02:51]}  Qxd5 {[%clk 0:02:40]} 10. O-O {[%clk 0:02:48]}  Qg5 {[%clk 0:02:34]} 11. f3 {[%clk 0:02:24]}  Bh3 {[%clk 0:02:22]} 12. Rf2 {[%clk 0:02:24]}  exf3 {[%clk 0:02:16]} 13. Bxf3 {[%clk 0:02:24]}  Rad8 {[%clk 0:02:16]} 14. Nc3 {[%clk 0:02:04]}  Bf5 {[%clk 0:01:48]} 15. Bxb7 {[%clk 0:01:49]}  Ng4 {[%clk 0:01:43]} 16. Rxf5 {[%clk 0:00:51]}  Qxf5 {[%clk 0:01:41]} 17. Bf3 {[%clk 0:00:52]}  h5 {[%clk 0:01:22]} 18. h3 {[%clk 0:00:34]}  Nf6 {[%clk 0:01:22]} 19. Bxa7 {[%clk 0:00:31]}  Bb4 {[%clk 0:01:17]} 20. Qe2 {[%clk 0:00:22]}  Rfe8 {[%clk 0:01:13]} 21. Rf1 {[%clk 0:00:17]}  Qc2 {[%clk 0:01:08]} 22. Qc4 {[%clk 0:00:14]}  Bxc3 {[%clk 0:00:53]} 23. dxc3 {[%clk 0:00:15]}  Re7 {[%clk 0:00:34]} 24. Bd4 {[%clk 0:00:15]}  Qg6 {[%clk 0:00:23]} 25. Qc5 {[%clk 0:00:10]}  Red7 {[%clk 0:00:19]} 26. Be2 {[%clk 0:00:10]}  Ne4 {[%clk 0:00:19]} 27. Bc4 {[%clk 0:00:07]}  Nxc5 {[%clk 0:00:18]} 28. Bxc5 {[%clk 0:00:07]}  Rd1 {[%clk 0:00:17]} 29. Bd4 {[%clk 0:00:06]}  Rxf1+ {[%clk 0:00:17]} 30. Bxf1 {[%clk 0:00:07]}  Qc2 {[%clk 0:00:14]} 31. b4 {[%clk 0:00:07]}  Qxa2 {[%clk 0:00:14]} 32. b5 {[%clk 0:00:06]}  Qb2 {[%clk 0:00:13]} 33. c4 {[%clk 0:00:06]}  Rxd4 {[%clk 0:00:13]} 34. exd4 {[%clk 0:00:07]}  Qxd4+ {[%clk 0:00:13]} 0-1

[Event "December 12 Early 2023"]
[Site "https://www.chess.com"]
[Date "2023.12.12"]
[Round "9"]
[White "Aaditya Dhingra"]
[Black "Ginzburg, Yakov"]
[Result "1-0"]
[Board "50"]
[TimeControl "180+1"]
[WhiteFideId "25678191"]
[BlackFideId "4157176"]
[WhiteElo "2692"]
[BlackElo "2560"]
[WhiteTeam "IND"]
[BlackTeam "RUS"]
[WhiteClock "0:00:42"]
[BlackClock "0:00:00"]

1. c4 {[%clk 0:02:59]}  c6 {[%clk 0:02:55]} 2. g3 {[%clk 0:02:58]}  d5 {[%clk 0:02:55]} 3. Bg2 {[%clk 0:02:58]}  Nf6 {[%clk 0:02:55]} 4. Nf3 {[%clk 0:02:58]}  g6 {[%clk 0:02:54]} 5. b3 {[%clk 0:02:58]}  Bg7 {[%clk 0:02:54]} 6. Bb2 {[%clk 0:02:59]}  O-O {[%clk 0:02:55]} 7. O-O {[%clk 0:02:59]}  Bf5 {[%clk 0:02:53]} 8. d3 {[%clk 0:02:57]}  Na6 {[%clk 0:02:52]} 9. Nbd2 {[%clk 0:02:52]}  Rc8 {[%clk 0:02:36]} 10. Rc1 {[%clk 0:02:47]}  Re8 {[%clk 0:02:33]} 11. Be5 {[%clk 0:02:45]}  Nc5 {[%clk 0:02:27]} 12. cxd5 {[%clk 0:02:35]}  cxd5 {[%clk 0:02:26]} 13. Nd4 {[%clk 0:02:25]}  Bd7 {[%clk 0:01:50]} 14. Rc2 {[%clk 0:02:23]}  Ng4 {[%clk 0:01:43]} 15. Bxg7 {[%clk 0:02:22]}  Kxg7 {[%clk 0:01:44]} 16. Qa1 {[%clk 0:02:17]}  e5 {[%clk 0:01:43]} 17. Bxd5 {[%clk 0:01:59]}  exd4 {[%clk 0:01:37]} 18. Rxc5 {[%clk 0:01:58]}  Rxc5 {[%clk 0:01:23]} 19. Qxd4+ {[%clk 0:01:57]}  Re5 {[%clk 0:01:22]} 20. Qxc5 {[%clk 0:01:52]}  Bc6 {[%clk 0:00:58]} 21. e4 {[%clk 0:01:51]}  Bxd5 {[%clk 0:00:58]} 22. exd5 {[%clk 0:01:50]}  Rxd5 {[%clk 0:00:58]} 23. Qc3+ {[%clk 0:01:50]}  Qf6 {[%clk 0:00:56]} 24. Rc1 {[%clk 0:01:41]}  Rxd3 {[%clk 0:00:50]} 25. Qxf6+ {[%clk 0:01:35]}  Nxf6 {[%clk 0:00:47]} 26. Nc4 {[%clk 0:01:34]}  Nd5 {[%clk 0:00:42]} 27. Kf1 {[%clk 0:01:33]}  b5 {[%clk 0:00:28]} 28. Na5 {[%clk 0:01:23]}  Rd2 {[%clk 0:00:27]} 29. a4 {[%clk 0:01:18]}  b4 {[%clk 0:00:26]} 30. Nc6 {[%clk 0:01:15]}  a6 {[%clk 0:00:25]} 31. Rc5 {[%clk 0:01:10]}  Nc3 {[%clk 0:00:24]} 32. Nxb4 {[%clk 0:01:07]}  Ne4 {[%clk 0:00:10]} 33. Rc2 {[%clk 0:01:02]}  Rd1+ {[%clk 0:00:07]} 34. Ke2 {[%clk 0:00:57]}  Rb1 {[%clk 0:00:07]} 35. Rc4 {[%clk 0:00:54]}  Rb2+ {[%clk 0:00:05]} 36. Ke3 {[%clk 0:00:46]}  Nxf2 {[%clk 0:00:03]} 37. Nxa6 {[%clk 0:00:46]}  Nd1+ {[%clk 0:00:00]} 38. Kd3 {[%clk 0:00:42]} 1-0

[Event "December 12 Early 2023"]
[Site "https://www.chess.com"]
[Date "2023.12.12"]
[Round "9"]
[White "Chinguun, Sumiya"]
[Black "Tulchynskyi, Feliks"]
[Result "0-1"]
[Board "51"]
[TimeControl "180+1"]
[WhiteFideId "4902572"]
[BlackFideId "34127895"]
[WhiteElo "2686"]
[BlackElo "2539"]
[WhiteTeam "MGL"]
[BlackTeam "UKR"]
[WhiteClock "0:00:43"]
[BlackClock "0:00:04"]

1. e4 {[%clk 0:02:59]}  e6 {[%clk 0:02:58]} 2. d4 {[%clk 0:02:59]}  d5 {[%clk 0:02:58]} 3. Nc3 {[%clk 0:02:59]}  Nf6 {[%clk 0:02:59]} 4. e5 {[%clk 0:03:00]}  Nfd7 {[%clk 0:02:59]} 5. f4 {[%clk 0:02:59]}  c5 {[%clk 0:03:00]} 6. Nf3 {[%clk 0:03:00]}  Nc6 {[%clk 0:03:00]} 7. Be3 {[%clk 0:03:00]}  a6 {[%clk 0:03:00]} 8. Ne2 {[%clk 0:03:00]}  Be7 {[%clk 0:02:54]} 9. c3 {[%clk 0:03:00]}  O-O {[%clk 0:02:53]} 10. g3 {[%clk 0:03:01]}  b5 {[%clk 0:02:52]} 11. Bg2 {[%clk 0:03:00]}  b4 {[%clk 0:02:52]} 12. O-O {[%clk 0:03:00]}  f5 {[%clk 0:02:51]} 13. exf6 {[%clk 0:02:58]}  gxf6 {[%clk 0:02:43]} 14. Bf2 {[%clk 0:02:50]}  bxc3 {[%clk 0:02:41]} 15. bxc3 {[%clk 0:02:50]}  Bd6 {[%clk 0:02:29]} 16. Qd3 {[%clk 0:02:49]}  f5 {[%clk 0:02:25]} 17. Ne5 {[%clk 0:02:48]}  Ncxe5 {[%clk 0:02:00]} 18. fxe5 {[%clk 0:02:48]}  c4 {[%clk 0:01:55]} 19. Qd2 {[%clk 0:02:43]}  Ba3 {[%clk 0:01:54]} 20. Nf4 {[%clk 0:02:41]}  Qe7 {[%clk 0:01:50]} 21. Be3 {[%clk 0:02:40]}  Qf7 {[%clk 0:01:44]} 22. Bf3 {[%clk 0:02:37]}  Rb8 {[%clk 0:01:37]} 23. Rab1 {[%clk 0:02:35]}  Nb6 {[%clk 0:01:30]} 24. Qg2 {[%clk 0:02:33]}  Bd7 {[%clk 0:01:25]} 25. Nh5 {[%clk 0:02:29]}  Be7 {[%clk 0:01:22]} 26. Bh6 {[%clk 0:02:25]}  Rfc8 {[%clk 0:01:19]} 27. Bg7 {[%clk 0:02:25]}  Na4 {[%clk 0:01:17]} 28. g4 {[%clk 0:02:23]}  Rxb1 {[%clk 0:01:06]} 29. Rxb1 {[%clk 0:02:20]}  Nxc3 {[%clk 0:01:06]} 30. Rc1 {[%clk 0:02:12]}  Ne4 {[%clk 0:01:04]} 31. gxf5 {[%clk 0:02:11]}  exf5 {[%clk 0:00:57]} 32. Kh1 {[%clk 0:01:39]}  Qg6 {[%clk 0:00:47]} 33. Qe2 {[%clk 0:01:38]}  Bh4 {[%clk 0:00:21]} 34. Rg1 {[%clk 0:01:24]}  Nf2+ {[%clk 0:00:19]} 35. Qxf2 {[%clk 0:01:23]}  Bxf2 {[%clk 0:00:20]} 36. Bxd5+ {[%clk 0:01:24]}  Qe6 {[%clk 0:00:10]} 37. Bh6+ {[%clk 0:01:11]}  Bxg1 {[%clk 0:00:07]} 38. Bxe6+ {[%clk 0:01:10]}  Bxe6 {[%clk 0:00:07]} 39. Kxg1 {[%clk 0:01:10]}  Kf7 {[%clk 0:00:07]} 40. Bc1 {[%clk 0:01:07]}  c3 {[%clk 0:00:06]} 41. Kf2 {[%clk 0:01:06]}  Rb8 {[%clk 0:00:06]} 42. Nf4 {[%clk 0:01:00]}  Rb1 {[%clk 0:00:04]} 43. Be3 {[%clk 0:00:57]}  Bxa2 {[%clk 0:00:03]} 44. Ne2 {[%clk 0:00:57]}  c2 {[%clk 0:00:03]} 45. Bc1 {[%clk 0:00:56]}  Bc4 {[%clk 0:00:03]} 46. d5 {[%clk 0:00:54]}  Bxe2 {[%clk 0:00:02]} 47. e6+ {[%clk 0:00:54]}  Ke7 {[%clk 0:00:03]} 48. Ba3+ {[%clk 0:00:54]}  Kf6 {[%clk 0:00:03]} 49. e7 {[%clk 0:00:53]}  Kf7 {[%clk 0:00:03]} 50. d6 {[%clk 0:00:43]}  Bb5 {[%clk 0:00:04]} 0-1

[Event "December 12 Early 2023"]
[Site "https://www.chess.com"]
[Date "2023.12.12"]
[Round "9"]
[White "Shevchuk, Olexandr"]
[Black "Nagare Kaivalya Sandip"]
[Result "0-1"]
[Board "53"]
[TimeControl "180+1"]
[WhiteFideId "14113775"]
[BlackFideId "25957929"]
[WhiteElo "2495"]
[BlackElo "2684"]
[WhiteTeam "UKR"]
[BlackTeam "IND"]
[WhiteClock "0:00:14"]
[BlackClock "0:01:25"]

1. d4 {[%clk 0:03:00]}  Nf6 {[%clk 0:02:59]} 2. c4 {[%clk 0:03:01]}  g6 {[%clk 0:03:00]} 3. Nc3 {[%clk 0:03:00]}  Bg7 {[%clk 0:03:01]} 4. e4 {[%clk 0:03:01]}  d6 {[%clk 0:03:01]} 5. Nf3 {[%clk 0:03:01]}  O-O {[%clk 0:03:02]} 6. Be2 {[%clk 0:03:02]}  Na6 {[%clk 0:03:01]} 7. O-O {[%clk 0:03:01]}  Bg4 {[%clk 0:03:01]} 8. Be3 {[%clk 0:03:01]}  c5 {[%clk 0:03:01]} 9. d5 {[%clk 0:03:00]}  Nd7 {[%clk 0:03:00]} 10. Nd2 {[%clk 0:02:59]}  Bxe2 {[%clk 0:02:59]} 11. Qxe2 {[%clk 0:03:00]}  Nc7 {[%clk 0:02:58]} 12. a4 {[%clk 0:02:59]}  b6 {[%clk 0:02:56]} 13. f4 {[%clk 0:02:58]}  a6 {[%clk 0:02:55]} 14. Rfb1 {[%clk 0:02:53]}  Qb8 {[%clk 0:02:52]} 15. Ra3 {[%clk 0:02:47]}  e5 {[%clk 0:02:48]} 16. g3 {[%clk 0:02:44]}  f5 {[%clk 0:02:46]} 17. exf5 {[%clk 0:02:40]}  gxf5 {[%clk 0:02:46]} 18. fxe5 {[%clk 0:02:40]}  dxe5 {[%clk 0:02:40]} 19. Rf1 {[%clk 0:02:35]}  Ne8 {[%clk 0:02:38]} 20. Qh5 {[%clk 0:02:24]}  Nd6 {[%clk 0:02:37]} 21. Bh6 {[%clk 0:02:24]}  Qe8 {[%clk 0:02:27]} 22. Qh3 {[%clk 0:02:05]}  e4 {[%clk 0:02:25]} 23. Bxg7 {[%clk 0:01:46]}  Kxg7 {[%clk 0:02:24]} 24. Raa1 {[%clk 0:01:45]}  Qe5 {[%clk 0:02:21]} 25. Kh1 {[%clk 0:01:32]}  Nf6 {[%clk 0:02:10]} 26. Qh4 {[%clk 0:01:24]}  Kh8 {[%clk 0:01:59]} 27. Rae1 {[%clk 0:01:19]}  Rae8 {[%clk 0:01:55]} 28. Nf3 {[%clk 0:01:06]}  Qe7 {[%clk 0:01:52]} 29. Qf4 {[%clk 0:01:01]}  Nxc4 {[%clk 0:01:46]} 30. Ng5 {[%clk 0:00:55]}  Nd6 {[%clk 0:01:43]} 31. Ne6 {[%clk 0:00:55]}  Nxd5 {[%clk 0:01:37]} 32. Qe5+ {[%clk 0:00:52]}  Nf6 {[%clk 0:01:37]} 33. Rd1 {[%clk 0:00:34]}  Nc4 {[%clk 0:01:31]} 34. Qxf5 {[%clk 0:00:26]}  Qxe6 {[%clk 0:01:31]} 35. Qg5 {[%clk 0:00:24]}  e3 {[%clk 0:01:27]} 36. Rde1 {[%clk 0:00:23]}  Ne4 {[%clk 0:01:26]} 37. Qh6 {[%clk 0:00:14]}  Qxh6 {[%clk 0:01:25]} 0-1

[Event "December 12 Early 2023"]
[Site "https://www.chess.com"]
[Date "2023.12.12"]
[Round "9"]
[White "Kazakouski, Valery"]
[Black "Cordoba Roa, Angel Gabriel"]
[Result "0-1"]
[Board "56"]
[TimeControl "180+1"]
[WhiteFideId "13507443"]
[BlackFideId "3957624"]
[WhiteElo "2835"]
[BlackElo "2579"]
[WhiteTeam "LTU"]
[BlackTeam "COL"]
[WhiteClock "0:00:06"]
[BlackClock "0:00:24"]

1. Nf3 {[%clk 0:03:00]}  Nf6 {[%clk 0:02:59]} 2. c4 {[%clk 0:03:01]}  e6 {[%clk 0:02:59]} 3. g3 {[%clk 0:03:01]}  d5 {[%clk 0:02:59]} 4. Bg2 {[%clk 0:03:02]}  d4 {[%clk 0:03:00]} 5. e3 {[%clk 0:03:01]}  c5 {[%clk 0:03:00]} 6. exd4 {[%clk 0:03:01]}  cxd4 {[%clk 0:03:01]} 7. d3 {[%clk 0:03:02]}  Nc6 {[%clk 0:03:01]} 8. O-O {[%clk 0:03:02]}  Bd6 {[%clk 0:03:02]} 9. Bd2 {[%clk 0:02:58]}  O-O {[%clk 0:03:01]} 10. Na3 {[%clk 0:02:59]}  Re8 {[%clk 0:02:59]} 11. Nb5 {[%clk 0:02:58]}  Bf8 {[%clk 0:02:58]} 12. Re1 {[%clk 0:02:55]}  e5 {[%clk 0:02:46]} 13. Qb1 {[%clk 0:02:34]}  h6 {[%clk 0:02:29]} 14. b4 {[%clk 0:02:32]}  Bf5 {[%clk 0:02:28]} 15. Qb3 {[%clk 0:02:21]}  e4 {[%clk 0:02:19]} 16. dxe4 {[%clk 0:02:21]}  Nxe4 {[%clk 0:02:20]} 17. Bf4 {[%clk 0:02:21]}  Bxb4 {[%clk 0:02:12]} 18. Red1 {[%clk 0:02:06]}  Nc5 {[%clk 0:02:02]} 19. Qb2 {[%clk 0:02:02]}  Nd3 {[%clk 0:01:58]} 20. Qb3 {[%clk 0:01:44]}  Nxf4 {[%clk 0:01:57]} 21. gxf4 {[%clk 0:01:44]}  Bc5 {[%clk 0:01:52]} 22. Qb2 {[%clk 0:01:36]}  d3 {[%clk 0:01:47]} 23. Re1 {[%clk 0:01:32]}  Qb6 {[%clk 0:01:31]} 24. Qd2 {[%clk 0:01:24]}  Bb4 {[%clk 0:01:23]} 25. Nc3 {[%clk 0:01:23]}  Qc5 {[%clk 0:01:18]} 26. Qb2 {[%clk 0:01:05]}  Qxc4 {[%clk 0:01:13]} 27. Rec1 {[%clk 0:01:05]}  Rad8 {[%clk 0:00:57]} 28. a3 {[%clk 0:00:58]}  d2 {[%clk 0:00:43]} 29. Nxd2 {[%clk 0:00:54]}  Qxf4 {[%clk 0:00:43]} 30. Nf1 {[%clk 0:00:51]}  Bc5 {[%clk 0:00:40]} 31. Nd5 {[%clk 0:00:43]}  Qd4 {[%clk 0:00:40]} 32. Nc3 {[%clk 0:00:29]}  Ne5 {[%clk 0:00:36]} 33. Na4 {[%clk 0:00:15]}  Qxb2 {[%clk 0:00:35]} 34. Nxb2 {[%clk 0:00:15]}  Bd4 {[%clk 0:00:35]} 35. Ra2 {[%clk 0:00:15]}  Bxb2 {[%clk 0:00:35]} 36. Rxb2 {[%clk 0:00:16]}  Nd3 {[%clk 0:00:36]} 37. Rcb1 {[%clk 0:00:17]}  Nxb2 {[%clk 0:00:36]} 38. Rxb2 {[%clk 0:00:18]}  Rd1 {[%clk 0:00:34]} 39. f4 {[%clk 0:00:16]}  Rb1 {[%clk 0:00:30]} 40. Rd2 {[%clk 0:00:16]}  b5 {[%clk 0:00:28]} 41. Kf2 {[%clk 0:00:15]}  Be4 {[%clk 0:00:28]} 42. Bh3 {[%clk 0:00:14]}  a5 {[%clk 0:00:26]} 43. Ng3 {[%clk 0:00:14]}  g6 {[%clk 0:00:20]} 44. Bd7 {[%clk 0:00:13]}  Re7 {[%clk 0:00:19]} 45. Bc8 {[%clk 0:00:14]}  Rc1 {[%clk 0:00:18]} 46. Ba6 {[%clk 0:00:13]}  b4 {[%clk 0:00:18]} 47. axb4 {[%clk 0:00:14]}  axb4 {[%clk 0:00:18]} 48. Rd4 {[%clk 0:00:14]}  b3 {[%clk 0:00:18]} 49. Nxe4 {[%clk 0:00:13]}  b2 {[%clk 0:00:18]} 50. Bd3 {[%clk 0:00:12]}  b1=Q {[%clk 0:00:18]} 51. Bxb1 {[%clk 0:00:13]}  Rxb1 {[%clk 0:00:19]} 52. Nf6+ {[%clk 0:00:09]}  Kg7 {[%clk 0:00:19]} 53. Ng4 {[%clk 0:00:10]}  h5 {[%clk 0:00:19]} 54. Ne5 {[%clk 0:00:08]}  Rb2+ {[%clk 0:00:19]} 55. Kg3 {[%clk 0:00:08]}  Re2 {[%clk 0:00:20]} 56. Rd3 {[%clk 0:00:08]}  R2xe5 {[%clk 0:00:19]} 57. fxe5 {[%clk 0:00:09]}  Rxe5 {[%clk 0:00:20]} 58. Kf4 {[%clk 0:00:09]}  Rf5+ {[%clk 0:00:20]} 59. Ke4 {[%clk 0:00:10]}  Kh6 {[%clk 0:00:20]} 60. Rg3 {[%clk 0:00:09]}  Rf1 {[%clk 0:00:21]} 61. Rg2 {[%clk 0:00:09]}  h4 {[%clk 0:00:21]} 62. Ke3 {[%clk 0:00:08]}  g5 {[%clk 0:00:21]} 63. Ke2 {[%clk 0:00:07]}  Rf4 {[%clk 0:00:21]} 64. Ke3 {[%clk 0:00:07]}  Kh5 {[%clk 0:00:22]} 65. Rg1 {[%clk 0:00:07]}  f5 {[%clk 0:00:22]} 66. Rg2 {[%clk 0:00:07]}  Ra4 {[%clk 0:00:22]} 67. Rf2 {[%clk 0:00:07]}  Ra3+ {[%clk 0:00:22]} 68. Kd4 {[%clk 0:00:07]}  Kg4 {[%clk 0:00:22]} 69. Rg2+ {[%clk 0:00:08]}  Kf4 {[%clk 0:00:23]} 70. Rf2+ {[%clk 0:00:08]}  Rf3 {[%clk 0:00:24]} 71. Rg2 {[%clk 0:00:06]}  g4 {[%clk 0:00:24]} 0-1

[Event "December 12 Early 2023"]
[Site "https://www.chess.com"]
[Date "2023.12.12"]
[Round "9"]
[White "Estrada Nieto, Julian"]
[Black "Srihari L R"]
[Result "0-1"]
[Board "61"]
[TimeControl "180+1"]
[WhiteFideId "5101018"]
[BlackFideId "46617116"]
[WhiteElo "2530"]
[BlackElo "2730"]
[WhiteTeam "ESP"]
[BlackTeam "IND"]
[WhiteClock "0:01:42"]
[BlackClock "0:01:28"]

1. e4 {[%clk 0:03:00]}  g6 {[%clk 0:02:44]} 2. d4 {[%clk 0:02:59]}  Bg7 {[%clk 0:02:43]} 3. Nf3 {[%clk 0:03:00]}  d6 {[%clk 0:02:41]} 4. Be2 {[%clk 0:03:00]}  Nf6 {[%clk 0:02:40]} 5. Nc3 {[%clk 0:03:00]}  O-O {[%clk 0:02:35]} 6. O-O {[%clk 0:03:00]}  a6 {[%clk 0:02:32]} 7. a4 {[%clk 0:02:59]}  Nc6 {[%clk 0:02:32]} 8. Be3 {[%clk 0:02:59]}  e5 {[%clk 0:02:31]} 9. dxe5 {[%clk 0:02:55]}  dxe5 {[%clk 0:02:25]} 10. Qxd8 {[%clk 0:02:50]}  Rxd8 {[%clk 0:02:26]} 11. Rfd1 {[%clk 0:02:50]}  Bg4 {[%clk 0:02:25]} 12. Bg5 {[%clk 0:02:42]}  Bxf3 {[%clk 0:02:18]} 13. Bxf3 {[%clk 0:02:39]}  Nd4 {[%clk 0:02:19]} 14. Nd5 {[%clk 0:02:36]}  Rd6 {[%clk 0:02:02]} 15. Rxd4 {[%clk 0:02:23]}  exd4 {[%clk 0:01:40]} 16. e5 {[%clk 0:02:22]}  Rxd5 {[%clk 0:01:36]} 17. Bxd5 {[%clk 0:02:14]}  Nxd5 {[%clk 0:01:34]} 18. Re1 {[%clk 0:02:04]}  c5 {[%clk 0:01:32]} 19. e6 {[%clk 0:01:42]}  Re8 {[%clk 0:01:28]} 0-1

[Event "December 12 Early 2023"]
[Site "https://www.chess.com"]
[Date "2023.12.12"]
[Round "9"]
[White "Tokhirjonova, Gulrukhbegim"]
[Black "Parfenov, Viktor N."]
[Result "1-0"]
[Board "62"]
[TimeControl "180+1"]
[WhiteFideId "14203626"]
[BlackFideId "4165969"]
[WhiteElo "2664"]
[BlackElo "2518"]
[WhiteTeam "USA"]
[BlackTeam "RUS"]
[WhiteClock "0:00:20"]
[BlackClock "0:00:00"]

1. e4 {[%clk 0:03:00]}  e5 {[%clk 0:02:59]} 2. Nf3 {[%clk 0:03:00]}  Nc6 {[%clk 0:03:00]} 3. Bb5 {[%clk 0:02:59]}  a6 {[%clk 0:03:00]} 4. Ba4 {[%clk 0:02:59]}  Nf6 {[%clk 0:02:59]} 5. O-O {[%clk 0:02:59]}  Bc5 {[%clk 0:02:58]} 6. Re1 {[%clk 0:02:56]}  Ng4 {[%clk 0:02:09]} 7. Rf1 {[%clk 0:02:56]}  Nf6 {[%clk 0:01:55]} 8. d3 {[%clk 0:02:56]}  d6 {[%clk 0:01:43]} 9. h3 {[%clk 0:02:50]}  h6 {[%clk 0:01:40]} 10. c3 {[%clk 0:02:50]}  Ba7 {[%clk 0:01:37]} 11. d4 {[%clk 0:02:44]}  O-O {[%clk 0:01:35]} 12. Re1 {[%clk 0:02:20]}  b5 {[%clk 0:01:20]} 13. Bc2 {[%clk 0:02:17]}  exd4 {[%clk 0:01:17]} 14. cxd4 {[%clk 0:02:17]}  Nb4 {[%clk 0:01:17]} 15. Bb3 {[%clk 0:02:14]}  c5 {[%clk 0:01:16]} 16. a3 {[%clk 0:02:05]}  Nc6 {[%clk 0:01:15]} 17. d5 {[%clk 0:01:58]}  Ne5 {[%clk 0:01:08]} 18. Nxe5 {[%clk 0:01:57]}  dxe5 {[%clk 0:01:09]} 19. Nc3 {[%clk 0:01:57]}  Ne8 {[%clk 0:01:01]} 20. Qh5 {[%clk 0:01:41]}  c4 {[%clk 0:00:57]} 21. Bc2 {[%clk 0:01:39]}  Qe7 {[%clk 0:00:51]} 22. Be3 {[%clk 0:01:34]}  Nd6 {[%clk 0:00:48]} 23. Rad1 {[%clk 0:01:09]}  Bd7 {[%clk 0:00:44]} 24. Ne2 {[%clk 0:01:08]}  Bxe3 {[%clk 0:00:32]} 25. fxe3 {[%clk 0:01:09]}  Qg5 {[%clk 0:00:31]} 26. Qf3 {[%clk 0:00:47]}  a5 {[%clk 0:00:20]} 27. Rf1 {[%clk 0:00:44]}  b4 {[%clk 0:00:17]} 28. axb4 {[%clk 0:00:41]}  axb4 {[%clk 0:00:17]} 29. Ra1 {[%clk 0:00:31]}  b3 {[%clk 0:00:15]} 30. Rxa8 {[%clk 0:00:29]}  Rxa8 {[%clk 0:00:15]} 31. Bb1 {[%clk 0:00:28]}  Ra1 {[%clk 0:00:09]} 32. Nc3 {[%clk 0:00:28]}  f6 {[%clk 0:00:07]} 33. Kh2 {[%clk 0:00:22]}  Ra8 {[%clk 0:00:06]} 34. Qe2 {[%clk 0:00:20]}  Qh4 {[%clk 0:00:05]} 35. Rf3 {[%clk 0:00:20]}  Ra7 {[%clk 0:00:04]} 36. Rg3 {[%clk 0:00:20]}  Kh8 {[%clk 0:00:03]} 37. Qf2 {[%clk 0:00:20]}  Ra8 {[%clk 0:00:02]} 38. Qf3 {[%clk 0:00:20]}  Ra7 {[%clk 0:00:00]} 39. Rg6 {[%clk 0:00:20]} 1-0